[Event "*** Titled Tuesday Blitz"]
[Site "Chess.com"]
[Date "2020.04.28"]
[Round "4"]
[White "Fighter008"]
[Black "vizumatv4hoda"]
[Result "0-1"]
[WhiteElo "2517"]
[BlackElo "2763"]
[TimeControl "180+1"]
[EndTime "10:41:25 PDT"]
[Termination "vizumatv4hoda won by checkmate"]

1. e4 {[%clk 0:03:00.9]} 1... c5 {[%clk 0:02:57.5]} 2. Nf3 {[%clk 0:02:59.8]}
2... g6 {[%clk 0:02:56.1]} 3. h4 {[%clk 0:02:54.6]} 3... Bg7 {[%clk 0:02:57]} 4.
h5 {[%clk 0:02:54.6]} 4... Nc6 {[%clk 0:02:55.6]} 5. d3 {[%clk 0:02:51.7]} 5...
d6 {[%clk 0:02:54]} 6. Nc3 {[%clk 0:02:51.1]} 6... Bg4 {[%clk 0:02:53.6]} 7. h6
{[%clk 0:02:40.8]} 7... Bf8 {[%clk 0:02:53.6]} 8. Be3 {[%clk 0:02:39]} 8... Nf6
{[%clk 0:02:51.3]} 9. Be2 {[%clk 0:02:33.8]} 9... e5 {[%clk 0:02:51.3]} 10. Qd2
{[%clk 0:02:31.4]} 10... Bxf3 {[%clk 0:02:50.5]} 11. gxf3 {[%clk 0:02:29]} 11...
Nd4 {[%clk 0:02:51.4]} 12. O-O-O {[%clk 0:02:27.9]} 12... Qa5 {[%clk 0:02:47.5]}
13. Kb1 {[%clk 0:02:25]} 13... b5 {[%clk 0:02:47.6]} 14. Nd5 {[%clk 0:02:20.5]}
14... Qd8 {[%clk 0:02:44.2]} 15. f4 {[%clk 0:01:36.7]} 15... Nxd5 {[%clk
0:02:39.7]} 16. exd5 {[%clk 0:01:36.9]} 16... Be7 {[%clk 0:02:38.3]} 17. Bg4
{[%clk 0:01:32.7]} 17... O-O {[%clk 0:02:37.7]} 18. c3 {[%clk 0:01:30.4]} 18...
Nf5 {[%clk 0:02:35.7]} 19. Bxf5 {[%clk 0:01:30.2]} 19... gxf5 {[%clk 0:02:36.6]}
20. Qe2 {[%clk 0:01:25.5]} 20... Bf6 {[%clk 0:02:33.8]} 21. Qh5 {[%clk
0:01:24.4]} 21... Qd7 {[%clk 0:02:34]} 22. Rdg1+ {[%clk 0:01:18]} 22... Kh8
{[%clk 0:02:34]} 23. fxe5 {[%clk 0:01:17.1]} 23... dxe5 {[%clk 0:02:34.9]} 24.
Bg5 {[%clk 0:01:17]} 24... Qe7 {[%clk 0:02:26.9]} 25. Qh4 {[%clk 0:01:15.3]}
25... Bxg5 {[%clk 0:02:26.4]} 26. Rxg5 {[%clk 0:01:16]} 26... Qd6 {[%clk
0:02:24.9]} 27. Rhg1 {[%clk 0:01:12.6]} 27... f6 {[%clk 0:01:44.2]} 28. Rg7
{[%clk 0:01:07.5]} 28... Qxd5 {[%clk 0:01:43.9]} 29. Rg8+ {[%clk 0:00:59.8]}
29... Qxg8 {[%clk 0:01:38.8]} 30. Rxg8+ {[%clk 0:00:59.1]} 30... Kxg8 {[%clk
0:01:37.2]} 31. Qg3+ {[%clk 0:00:59.1]} 31... Kf7 {[%clk 0:01:35.3]} 32. Qg7+
{[%clk 0:00:58.6]} 32... Ke6 {[%clk 0:01:35.9]} 33. Qxh7 {[%clk 0:00:58.8]}
33... Rf7 {[%clk 0:01:27.7]} 34. Qg6 {[%clk 0:00:54.8]} 34... Rh8 {[%clk
0:01:28.6]} 35. Qg2 {[%clk 0:00:52.3]} 35... Rc7 {[%clk 0:01:29.1]} 36. Qg6
{[%clk 0:00:49.3]} 36... a5 {[%clk 0:01:23.6]} 37. Kc2 {[%clk 0:00:41.4]} 37...
a4 {[%clk 0:01:23.3]} 38. a3 {[%clk 0:00:36.7]} 38... b4 {[%clk 0:01:23]} 39. f4
{[%clk 0:00:21.7]} 39... exf4 {[%clk 0:01:05.8]} 40. axb4 {[%clk 0:00:20.8]}
40... cxb4 {[%clk 0:01:04.6]} 41. d4 {[%clk 0:00:21.3]} 41... a3 {[%clk
0:01:01.2]} 42. bxa3 {[%clk 0:00:19.2]} 42... Rxc3+ {[%clk 0:00:59.8]} 43. Kb2
{[%clk 0:00:18.4]} 43... Rh3 {[%clk 0:00:54.9]} 44. d5+ {[%clk 0:00:17.5]} 44...
Ke5 {[%clk 0:00:52.2]} 45. d6 {[%clk 0:00:17.6]} 45... R8xh6 {[%clk 0:00:52.1]}
46. Qe8+ {[%clk 0:00:12.6]} 46... Kxd6 {[%clk 0:00:52]} 47. Qb8+ {[%clk
0:00:13.3]} 47... Kd5 {[%clk 0:00:51.7]} 48. Qxf4 {[%clk 0:00:12.7]} 48... Rh2+
{[%clk 0:00:47.4]} 49. Kb3 {[%clk 0:00:12.9]} 49... R6h3+ {[%clk 0:00:44.1]} 50.
Ka4 {[%clk 0:00:13.2]} 50... bxa3 {[%clk 0:00:44.2]} 51. Qxf5+ {[%clk
0:00:13.3]} 51... Kc4 {[%clk 0:00:43.2]} 52. Qf4+ {[%clk 0:00:13.5]} 52... Kd3
{[%clk 0:00:41.5]} 53. Kxa3 {[%clk 0:00:13.5]} 53... Kc2+ {[%clk 0:00:38.8]} 54.
Ka2 {[%clk 0:00:13.6]} 54... Kc3+ {[%clk 0:00:33.9]} 55. Ka3 {[%clk 0:00:13.7]}
55... Kc2+ {[%clk 0:00:33.9]} 56. Ka2 {[%clk 0:00:13.9]} 56... Rd2 {[%clk
0:00:29.7]} 57. Qf5+ {[%clk 0:00:12.9]} 57... Kc1+ {[%clk 0:00:27.7]} 58. Ka1
{[%clk 0:00:12.6]} 58... Ra3# {[%clk 0:00:27.8]} 0-1

[Event "*** Titled Tuesday Blitz"]
[Site "Chess.com"]
[Date "2020.04.28"]
[Round "4"]
[White "TheNomNomFactor"]
[Black "nadirsm"]
[Result "1/2-1/2"]
[WhiteElo "2389"]
[BlackElo "2106"]
[TimeControl "180+1"]
[EndTime "10:41:25 PDT"]
[Termination "Game drawn by repetition"]

1. e4 {[%clk 0:03:00.9]} 1... c6 {[%clk 0:02:58.9]} 2. d4 {[%clk 0:02:56.9]}
2... d5 {[%clk 0:02:59.8]} 3. e5 {[%clk 0:02:55.2]} 3... Bf5 {[%clk 0:02:59.5]}
4. h4 {[%clk 0:02:54.9]} 4... h5 {[%clk 0:02:58.7]} 5. Bd3 {[%clk 0:02:53.4]}
5... Bxd3 {[%clk 0:02:51.7]} 6. Qxd3 {[%clk 0:02:54.3]} 6... e6 {[%clk
0:02:52.1]} 7. Bg5 {[%clk 0:02:53.2]} 7... Qb6 {[%clk 0:02:47.4]} 8. Nd2 {[%clk
0:02:38]} 8... Nh6 {[%clk 0:02:44.3]} 9. Nb3 {[%clk 0:02:29.5]} 9... a5 {[%clk
0:02:41.2]} 10. Rb1 {[%clk 0:02:18.5]} 10... Nf5 {[%clk 0:02:31.6]} 11. c3
{[%clk 0:02:18.4]} 11... a4 {[%clk 0:02:27.8]} 12. Nd2 {[%clk 0:02:18.3]} 12...
c5 {[%clk 0:02:23.6]} 13. Ngf3 {[%clk 0:02:18.5]} 13... Nc6 {[%clk 0:02:22.4]}
14. O-O {[%clk 0:02:01.5]} 14... cxd4 {[%clk 0:02:19.9]} 15. cxd4 {[%clk
0:01:59.8]} 15... Nfxd4 {[%clk 0:02:14.7]} 16. Nxd4 {[%clk 0:01:32.5]} 16...
Qxd4 {[%clk 0:02:14.3]} 17. Qb5 {[%clk 0:01:32.5]} 17... Rb8 {[%clk 0:01:53.7]}
18. Rbc1 {[%clk 0:01:26.2]} 18... Qb4 {[%clk 0:01:41]} 19. Qe2 {[%clk
0:01:16.5]} 19... Be7 {[%clk 0:01:38.4]} 20. Nf3 {[%clk 0:01:13.7]} 20... g6
{[%clk 0:01:22.2]} 21. a3 {[%clk 0:01:10.8]} 21... Qb6 {[%clk 0:01:19.1]} 22.
Rc3 {[%clk 0:01:04]} 22... Bxg5 {[%clk 0:01:13.1]} 23. Nxg5 {[%clk 0:01:01.8]}
23... O-O {[%clk 0:01:11.8]} 24. Rfc1 {[%clk 0:00:54.3]} 24... Qd4 {[%clk
0:01:09.1]} 25. Nf3 {[%clk 0:00:50.9]} 25... Qg4 {[%clk 0:01:06.1]} 26. b3
{[%clk 0:00:46.8]} 26... axb3 {[%clk 0:01:03.2]} 27. Rxb3 {[%clk 0:00:47.7]}
27... Nd4 {[%clk 0:01:02.4]} 28. Nxd4 {[%clk 0:00:41.5]} 28... Qxd4 {[%clk
0:01:01.9]} 29. Rb4 {[%clk 0:00:41.4]} 29... Qa7 {[%clk 0:00:53.5]} 30. g4
{[%clk 0:00:38.1]} 30... Qxa3 {[%clk 0:00:48.8]} 31. Rcb1 {[%clk 0:00:30.4]}
31... Rbc8 {[%clk 0:00:31.2]} 32. gxh5 {[%clk 0:00:27.3]} 32... Rc1+ {[%clk
0:00:30.8]} 33. Kg2 {[%clk 0:00:27.7]} 33... Rxb1 {[%clk 0:00:29.9]} 34. Rxb1
{[%clk 0:00:28.6]} 34... Qa4 {[%clk 0:00:25.3]} 35. Rxb7 {[%clk 0:00:28]} 35...
Qxh4 {[%clk 0:00:23.6]} 36. hxg6 {[%clk 0:00:20.4]} 36... Qg5+ {[%clk
0:00:23.4]} 37. Kf1 {[%clk 0:00:19.5]} 37... fxg6 {[%clk 0:00:19.1]} 38. Rb3
{[%clk 0:00:19.9]} 38... Rf5 {[%clk 0:00:15.2]} 39. Rg3 {[%clk 0:00:17.7]} 39...
Qc1+ {[%clk 0:00:15.1]} 40. Kg2 {[%clk 0:00:18.3]} 40... Kg7 {[%clk 0:00:13.5]}
41. Qg4 {[%clk 0:00:17.5]} 41... g5 {[%clk 0:00:11.7]} 42. Qh5 {[%clk
0:00:15.4]} 42... Qf4 {[%clk 0:00:11.1]} 43. Qe2 {[%clk 0:00:10.6]} 43... Qh4
{[%clk 0:00:09.4]} 44. Qe3 {[%clk 0:00:09]} 44... Qe4+ {[%clk 0:00:09.4]} 45.
Qxe4 {[%clk 0:00:07.4]} 45... dxe4 {[%clk 0:00:10.3]} 46. Kf1 {[%clk 0:00:05.8]}
46... Rxe5 {[%clk 0:00:11.2]} 47. Ke2 {[%clk 0:00:06.4]} 47... Kf6 {[%clk
0:00:11.6]} 48. Ke3 {[%clk 0:00:07]} 48... Kf5 {[%clk 0:00:12.1]} 49. Rh3 {[%clk
0:00:03.9]} 49... Ra5 {[%clk 0:00:12.5]} 50. Rh8 {[%clk 0:00:03.7]} 50... Ra3+
{[%clk 0:00:13.2]} 51. Ke2 {[%clk 0:00:04.4]} 51... Kg4 {[%clk 0:00:13.4]} 52.
Re8 {[%clk 0:00:03.4]} 52... Kf5 {[%clk 0:00:12.8]} 53. Rf8+ {[%clk 0:00:03]}
53... Ke5 {[%clk 0:00:13.2]} 54. Rg8 {[%clk 0:00:03.2]} 54... Kf5 {[%clk
0:00:13.4]} 55. Rf8+ {[%clk 0:00:03.6]} 55... Ke5 {[%clk 0:00:13.7]} 56. Rg8
{[%clk 0:00:03.8]} 56... Ra2+ {[%clk 0:00:14.2]} 57. Ke3 {[%clk 0:00:03.6]}
57... Ra3+ {[%clk 0:00:14.5]} 58. Ke2 {[%clk 0:00:03.3]} 1/2-1/2

[Event "*** Titled Tuesday Blitz"]
[Site "Chess.com"]
[Date "2020.04.28"]
[Round "4"]
[White "Twitch_ElhamBlitz05"]
[Black "swimmerchess"]
[Result "1-0"]
[WhiteElo "2718"]
[BlackElo "2849"]
[TimeControl "180+1"]
[EndTime "10:41:26 PDT"]
[Termination "Twitch_ElhamBlitz05 won by resignation"]

1. e4 {[%clk 0:03:00.9]} 1... c5 {[%clk 0:02:59.9]} 2. Ne2 {[%clk 0:03:00.4]}
2... Nc6 {[%clk 0:02:58.5]} 3. Nbc3 {[%clk 0:02:53.8]} 3... Nf6 {[%clk
0:02:57.9]} 4. d4 {[%clk 0:02:53.9]} 4... cxd4 {[%clk 0:02:57.7]} 5. Nxd4 {[%clk
0:02:54.8]} 5... d6 {[%clk 0:02:58.6]} 6. f3 {[%clk 0:02:54.6]} 6... e5 {[%clk
0:02:58.1]} 7. Nb3 {[%clk 0:02:55.2]} 7... Be7 {[%clk 0:02:58.8]} 8. Be3 {[%clk
0:02:55.7]} 8... O-O {[%clk 0:02:57.7]} 9. Qd2 {[%clk 0:02:56]} 9... a5 {[%clk
0:02:58.1]} 10. Bb5 {[%clk 0:02:53.7]} 10... Na7 {[%clk 0:02:57.7]} 11. Bxa7
{[%clk 0:02:52.8]} 11... Rxa7 {[%clk 0:02:57.6]} 12. a4 {[%clk 0:02:53.3]} 12...
Be6 {[%clk 0:02:52.8]} 13. Rd1 {[%clk 0:02:53.1]} 13... Ra8 {[%clk 0:02:48.6]}
14. O-O {[%clk 0:02:53.1]} 14... Rc8 {[%clk 0:02:44.9]} 15. Qe2 {[%clk
0:02:30.6]} 15... Nh5 {[%clk 0:02:39.3]} 16. g3 {[%clk 0:02:28.4]} 16... f5
{[%clk 0:02:31.6]} 17. Kh1 {[%clk 0:02:17.8]} 17... f4 {[%clk 0:02:09.5]} 18. g4
{[%clk 0:02:17.2]} 18... Nf6 {[%clk 0:02:10.1]} 19. Rd2 {[%clk 0:02:06.7]} 19...
g5 {[%clk 0:01:57.5]} 20. Nd5 {[%clk 0:01:48.2]} 20... Bxd5 {[%clk 0:01:38.2]}
21. exd5 {[%clk 0:01:49.1]} 21... Kg7 {[%clk 0:01:39]} 22. Kg2 {[%clk
0:01:09.7]} 22... h5 {[%clk 0:01:31.9]} 23. h3 {[%clk 0:01:10]} 23... Rf7 {[%clk
0:01:28.6]} 24. c4 {[%clk 0:00:55.5]} 24... b6 {[%clk 0:01:27.6]} 25. Rdd1
{[%clk 0:00:50.1]} 25... Qh8 {[%clk 0:01:26.6]} 26. Nd2 {[%clk 0:00:48.9]} 26...
Qh6 {[%clk 0:01:26.7]} 27. Ne4 {[%clk 0:00:44.9]} 27... Rh8 {[%clk 0:01:24.1]}
28. Rh1 {[%clk 0:00:34]} 28... Kf8 {[%clk 0:01:22.7]} 29. Nxf6 {[%clk
0:00:27.8]} 29... Bxf6 {[%clk 0:01:18.1]} 30. Qe4 {[%clk 0:00:27.8]} 30... Qh7
{[%clk 0:01:13.5]} 31. Qxh7 {[%clk 0:00:20.5]} 31... Rfxh7 {[%clk 0:01:14.4]}
32. Rde1 {[%clk 0:00:18.4]} 32... hxg4 {[%clk 0:00:58.5]} 33. hxg4 {[%clk
0:00:05.2]} 33... Rxh1 {[%clk 0:00:59.4]} 34. Rxh1 {[%clk 0:00:05.5]} 34... Rxh1
{[%clk 0:01:00.3]} 35. Kxh1 {[%clk 0:00:05.7]} 35... e4 {[%clk 0:01:01.2]} 36.
fxe4 {[%clk 0:00:06.2]} 36... Bxb2 {[%clk 0:01:02.1]} 37. Kg2 {[%clk 0:00:06.6]}
37... Kg7 {[%clk 0:01:02.6]} 38. Kf3 {[%clk 0:00:07.5]} 38... Kf6 {[%clk
0:01:03.5]} 39. Ke2 {[%clk 0:00:04.4]} 39... Ke5 {[%clk 0:01:04.4]} 40. Kf3
{[%clk 0:00:05.3]} 40... Kd4 {[%clk 0:01:04.4]} 41. Ba6 {[%clk 0:00:05.7]} 41...
Ba3 {[%clk 0:00:57.1]} 42. Bb5 {[%clk 0:00:06.6]} 42... Bc5 {[%clk 0:00:57.3]}
43. Ba6 {[%clk 0:00:06.8]} 43... Kc3 {[%clk 0:00:44.4]} 44. Bb5 {[%clk
0:00:07.7]} 44... Bd4 {[%clk 0:00:38.9]} 45. Ba6 {[%clk 0:00:07.1]} 45... Be5
{[%clk 0:00:20.3]} 46. Bb5 {[%clk 0:00:08]} 46... Kb3 {[%clk 0:00:20]} 47. Ke2
{[%clk 0:00:08.1]} 47... Kb4 {[%clk 0:00:19.1]} 48. Kf3 {[%clk 0:00:08.4]} 48...
Kc5 {[%clk 0:00:18.9]} 49. Ke2 {[%clk 0:00:09.2]} 49... Kd4 {[%clk 0:00:19.2]}
50. Kf3 {[%clk 0:00:10.1]} 50... Kd3 {[%clk 0:00:19.6]} 51. c5+ {[%clk
0:00:07.4]} 51... Kc3 {[%clk 0:00:13.2]} 52. c6 {[%clk 0:00:07.3]} 1-0

[Event "*** Titled Tuesday Blitz"]
[Site "Chess.com"]
[Date "2020.04.28"]
[Round "4"]
[White "AnkitGajwa"]
[Black "albi1999"]
[Result "0-1"]
[WhiteElo "2465"]
[BlackElo "2657"]
[TimeControl "180+1"]
[EndTime "10:41:26 PDT"]
[Termination "albi1999 won by checkmate"]

1. e4 {[%clk 0:03:00]} 1... e5 {[%clk 0:02:59]} 2. Nf3 {[%clk 0:02:59.7]} 2...
Nc6 {[%clk 0:02:58.9]} 3. Bb5 {[%clk 0:02:58.9]} 3... a6 {[%clk 0:02:59.2]} 4.
Ba4 {[%clk 0:02:58.5]} 4... Nf6 {[%clk 0:02:59.4]} 5. O-O {[%clk 0:02:56.6]}
5... Be7 {[%clk 0:02:58.3]} 6. Re1 {[%clk 0:02:56.9]} 6... b5 {[%clk 0:02:58.4]}
7. Bb3 {[%clk 0:02:56.7]} 7... O-O {[%clk 0:02:58.9]} 8. a4 {[%clk 0:02:54.4]}
8... b4 {[%clk 0:02:58.7]} 9. d4 {[%clk 0:02:51.8]} 9... d6 {[%clk 0:02:58.9]}
10. dxe5 {[%clk 0:02:48]} 10... Nxe5 {[%clk 0:02:59.8]} 11. Nxe5 {[%clk
0:02:47.4]} 11... dxe5 {[%clk 0:02:59.1]} 12. Qf3 {[%clk 0:02:45.7]} 12... Bg4
{[%clk 0:02:00.3]} 13. Qg3 {[%clk 0:02:38.7]} 13... Bd6 {[%clk 0:01:58.4]} 14.
Bg5 {[%clk 0:02:32.9]} 14... Bh5 {[%clk 0:01:51.4]} 15. Nd2 {[%clk 0:02:25.2]}
15... Bg6 {[%clk 0:01:49.6]} 16. Nc4 {[%clk 0:02:09.4]} 16... h6 {[%clk
0:01:42]} 17. Bh4 {[%clk 0:01:46.3]} 17... Kh7 {[%clk 0:01:23.5]} 18. Nxe5
{[%clk 0:01:37.5]} 18... Re8 {[%clk 0:01:12.1]} 19. f4 {[%clk 0:01:36.8]} 19...
Bxe5 {[%clk 0:01:07.7]} 20. fxe5 {[%clk 0:01:36.6]} 20... Qd4+ {[%clk
0:01:08.6]} 21. Kh1 {[%clk 0:01:31]} 21... Qxe5 {[%clk 0:01:08.6]} 22. Qxe5
{[%clk 0:01:19.2]} 22... Rxe5 {[%clk 0:01:08.2]} 23. Bg3 {[%clk 0:01:19.5]}
23... Rxe4 {[%clk 0:01:00.7]} 24. Bxc7 {[%clk 0:01:18.4]} 24... Rae8 {[%clk
0:00:50]} 25. Rxe4 {[%clk 0:01:17.6]} 25... Rxe4 {[%clk 0:00:50.9]} 26. Kg1
{[%clk 0:01:02.7]} 26... Re2 {[%clk 0:00:24.2]} 27. Kf1 {[%clk 0:00:57.8]} 27...
Rd2 {[%clk 0:00:24.3]} 28. Bf4 {[%clk 0:00:57.7]} 28... Rd4 {[%clk 0:00:23.4]}
29. Be5 {[%clk 0:00:53.1]} 29... Rd2 {[%clk 0:00:21.3]} 30. Bxf6 {[%clk
0:00:45.5]} 30... gxf6 {[%clk 0:00:21]} 31. Rc1 {[%clk 0:00:35.5]} 31... Be4
{[%clk 0:00:20.4]} 32. Bxf7 {[%clk 0:00:32.2]} 32... Rxg2 {[%clk 0:00:20.3]} 33.
Re1 {[%clk 0:00:30.1]} 33... Rg4 {[%clk 0:00:15.6]} 34. Bb3 {[%clk 0:00:20.4]}
34... f5 {[%clk 0:00:15.8]} 35. Re2 {[%clk 0:00:19.4]} 35... Kg6 {[%clk
0:00:14.7]} 36. Kf2 {[%clk 0:00:19.3]} 36... Kg5 {[%clk 0:00:15.1]} 37. c4
{[%clk 0:00:18]} 37... bxc3 {[%clk 0:00:14.8]} 38. bxc3 {[%clk 0:00:18.1]} 38...
Kf4 {[%clk 0:00:15.7]} 39. Bc4 {[%clk 0:00:16]} 39... Ke5 {[%clk 0:00:15.5]} 40.
Bxa6 {[%clk 0:00:16]} 40... Rg2+ {[%clk 0:00:13.7]} 41. Ke1 {[%clk 0:00:15.9]}
41... Rg1+ {[%clk 0:00:13.4]} 42. Kd2 {[%clk 0:00:16.3]} 42... Ra1 {[%clk
0:00:14]} 43. Bb5 {[%clk 0:00:16.2]} 43... f4 {[%clk 0:00:13.9]} 44. Bc6 {[%clk
0:00:16.2]} 44... Ra2+ {[%clk 0:00:14]} 45. Ke1 {[%clk 0:00:16]} 45... Rxe2+
{[%clk 0:00:14.5]} 46. Kxe2 {[%clk 0:00:16.4]} 46... Bxc6 {[%clk 0:00:15.4]} 47.
a5 {[%clk 0:00:16.9]} 47... Bb5+ {[%clk 0:00:15.6]} 48. Kf3 {[%clk 0:00:17]}
48... Kf5 {[%clk 0:00:16.1]} 49. h4 {[%clk 0:00:16]} 49... h5 {[%clk 0:00:16.4]}
50. Kf2 {[%clk 0:00:14.9]} 50... Ke4 {[%clk 0:00:16.8]} 51. Kg2 {[%clk
0:00:14.2]} 51... Ke3 {[%clk 0:00:17.1]} 52. Kh3 {[%clk 0:00:13.4]} 52... f3
{[%clk 0:00:17]} 53. c4 {[%clk 0:00:14.1]} 53... Bxc4 {[%clk 0:00:16.7]} 54. a6
{[%clk 0:00:14.1]} 54... f2 {[%clk 0:00:17]} 55. a7 {[%clk 0:00:13.5]} 55...
f1=Q+ {[%clk 0:00:17]} 56. Kh2 {[%clk 0:00:14.1]} 56... Qf2+ {[%clk 0:00:16.9]}
57. Kh3 {[%clk 0:00:14.4]} 57... Be6# {[%clk 0:00:16.7]} 0-1

[Event "*** Titled Tuesday Blitz"]
[Site "Chess.com"]
[Date "2020.04.28"]
[Round "4"]
[White "MaximDlugy"]
[Black "lucliasco"]
[Result "1-0"]
[WhiteElo "2908"]
[BlackElo "2638"]
[TimeControl "180+1"]
[EndTime "10:41:28 PDT"]
[Termination "MaximDlugy won by resignation"]

1. d4 {[%clk 0:03:00.6]} 1... d5 {[%clk 0:02:58.6]} 2. Bf4 {[%clk 0:03:01.3]}
2... c5 {[%clk 0:02:57.5]} 3. Nc3 {[%clk 0:03:01.6]} 3... a6 {[%clk 0:02:52.8]}
4. e4 {[%clk 0:02:56.4]} 4... e6 {[%clk 0:02:36.7]} 5. exd5 {[%clk 0:02:47.4]}
5... exd5 {[%clk 0:02:37.6]} 6. dxc5 {[%clk 0:02:39.1]} 6... Nf6 {[%clk
0:02:36.9]} 7. Na4 {[%clk 0:02:11.3]} 7... Bxc5 {[%clk 0:02:26.7]} 8. Nxc5
{[%clk 0:02:10.3]} 8... Qa5+ {[%clk 0:02:27.2]} 9. Qd2 {[%clk 0:02:10.8]} 9...
Qxc5 {[%clk 0:02:27.1]} 10. Bd3 {[%clk 0:02:07.1]} 10... Nc6 {[%clk 0:02:21.6]}
11. Nf3 {[%clk 0:02:05]} 11... O-O {[%clk 0:02:21]} 12. O-O {[%clk 0:02:05.1]}
12... Bg4 {[%clk 0:02:14.8]} 13. Ne5 {[%clk 0:02:05.5]} 13... Bh5 {[%clk
0:02:13]} 14. Nxc6 {[%clk 0:02:03.6]} 14... Qxc6 {[%clk 0:02:04.8]} 15. Be5
{[%clk 0:02:03.2]} 15... Bg6 {[%clk 0:01:58.6]} 16. Bxg6 {[%clk 0:01:59.4]}
16... hxg6 {[%clk 0:01:57.8]} 17. Rad1 {[%clk 0:01:55]} 17... Rad8 {[%clk
0:01:55.1]} 18. c3 {[%clk 0:01:54.7]} 18... Rfe8 {[%clk 0:01:52.1]} 19. Rfe1
{[%clk 0:01:50.6]} 19... Qa4 {[%clk 0:01:47.1]} 20. Bxf6 {[%clk 0:01:44]} 20...
gxf6 {[%clk 0:01:45.4]} 21. Rxe8+ {[%clk 0:01:43]} 21... Rxe8 {[%clk 0:01:39.3]}
22. Qxd5 {[%clk 0:01:36]} 22... Qc2 {[%clk 0:01:26.7]} 23. h4 {[%clk 0:00:49.9]}
23... Qxb2 {[%clk 0:01:23.8]} 24. h5 {[%clk 0:00:47.6]} 24... gxh5 {[%clk
0:01:05.4]} 25. Rd3 {[%clk 0:00:39.1]} 25... Qc1+ {[%clk 0:01:02.9]} 26. Kh2
{[%clk 0:00:39.3]} 26... Re5 {[%clk 0:01:03.4]} 27. Rg3+ {[%clk 0:00:33.8]}
27... Rg5 {[%clk 0:01:02.3]} 28. Qxb7 {[%clk 0:00:31.5]} 28... Rxg3 {[%clk
0:00:54.2]} 29. fxg3 {[%clk 0:00:32.4]} 29... Qxc3 {[%clk 0:00:54.5]} 30. Qxa6
{[%clk 0:00:32.8]} 30... Kg7 {[%clk 0:00:49.5]} 31. Qa4 {[%clk 0:00:30.3]} 31...
f5 {[%clk 0:00:40.9]} 32. Qf4 {[%clk 0:00:29.8]} 32... Qa3 {[%clk 0:00:35.4]}
33. Qg5+ {[%clk 0:00:27.3]} 33... Kf8 {[%clk 0:00:34.2]} 34. Qd8+ {[%clk
0:00:26.6]} 34... Kg7 {[%clk 0:00:32.7]} 35. Qd4+ {[%clk 0:00:27.3]} 35... Kg6
{[%clk 0:00:26]} 36. Qb6+ {[%clk 0:00:26.6]} 36... Kg7 {[%clk 0:00:26.6]} 37.
Qb3 {[%clk 0:00:26.1]} 37... Qd6 {[%clk 0:00:23.5]} 38. Qc3+ {[%clk 0:00:24.6]}
38... Kg6 {[%clk 0:00:23.6]} 39. Qc4 {[%clk 0:00:20.6]} 39... Qe5 {[%clk
0:00:18.7]} 40. a4 {[%clk 0:00:20.1]} 40... Qe1 {[%clk 0:00:15]} 41. Qc6+ {[%clk
0:00:18.7]} 41... f6 {[%clk 0:00:08.5]} 42. Qc4 {[%clk 0:00:17.3]} 42... Qe8
{[%clk 0:00:08.5]} 43. a5 {[%clk 0:00:16.8]} 43... Qb8 {[%clk 0:00:08.7]} 44. a6
{[%clk 0:00:16.5]} 44... Qb6 {[%clk 0:00:09]} 45. Qa4 {[%clk 0:00:15.8]} 45...
Qa7 {[%clk 0:00:09.5]} 46. Qe8+ {[%clk 0:00:16.1]} 46... Kh6 {[%clk 0:00:09.4]}
47. Qf8+ {[%clk 0:00:16]} 47... Kg6 {[%clk 0:00:09.9]} 48. Qd6 {[%clk
0:00:14.6]} 48... Kg7 {[%clk 0:00:09.3]} 49. Qc6 {[%clk 0:00:14.7]} 49... Kg6
{[%clk 0:00:09.7]} 50. Qb7 {[%clk 0:00:15.1]} 50... Qe3 {[%clk 0:00:10.2]} 51.
Qf3 {[%clk 0:00:14.8]} 51... h4 {[%clk 0:00:10.8]} 52. Qxe3 {[%clk 0:00:15.1]}
52... hxg3+ {[%clk 0:00:11.3]} 53. Qxg3+ {[%clk 0:00:15.3]} 53... Kh5 {[%clk
0:00:12.2]} 54. a7 {[%clk 0:00:16.2]} 1-0